bitfinex/quotes_SOLUSD_20241001
["timestamp","ask_amount","ask_price","bid_price","bid_amount"]
[1727790873854,6.5219,153.33,153.27,6.5243]
[1727790874049,6.5219,153.33,153.28,1.304391]
[1727790874252,6.5219,153.33,153.28,7.828291]
[1727790874884,6.5219,153.33,153.28,1.304391]
[1727790875057,6.5219,153.33,153.22,32.6317]
[1727790875058,17.937241,153.32,153.22,16.3161]
[1727790875379,6.5238,153.29,153.22,22.8423]
[1727790875674,6.5231,153.31,153.24,6.5255]
[1727790876182,6.523,153.31,153.22,16.3161]
[1727790876473,6.523,153.31,153.24,6.5255]
[1727790877255,6.524,153.28,153.22,22.8423]
[1727790877456,43.776884,153.32,153.2,6.0878]
[1727790877669,1.63110504,153.31,153.19,6.5278]
[1727790877874,1.63110504,153.31,153.18,16.3196]
[1727790878187,6.5257,153.24,153.18,22.8478]
[1727790878558,16.3258,153.27,153.18,16.3196]
[1727790878857,1.6315111,153.26,153.16,12.7474]
[1727790879054,6.5261,153.23,153.17,6.5286]
[1727790879483,1.63158784,153.22,153.15,16.3236]
[1727790879660,6.527,153.21,153.15,22.8531]
[1727790879861,6.5274,153.2,153.15,16.3236]
[1727790880100,23.776884,153.23,153.12,28.9548]
[1727790880382,6.529,153.17,153.11,6.5312]
[1727790880584,23.776884,153.2,153.09,16.3301]
[1727790880884,6.5291,153.17,153.11,6.5311]
[1727790881083,6.5283,153.18,153.12,7.83648558]
[1727790881264,8.16025698,153.19,153.14,16.3248]
[1727790881595,6.5279,153.19,153.15,1.30575655]
[1727790881754,6.5279,153.19,153.14,16.3248]
[1727790882083,6.5283,153.18,153.11,22.8588]
[1727790882660,6.5283,153.18,153.11,16.328]
[1727790883079,6.5283,153.18,153.13,6.5303]
[1727790883281,6.23,153.23,153.13,7.83605582]
[1727790883282,6.5278,153.19,153.13,7.83605582]
[1727790883462,6.5274,153.2,153.14,6.5299]
[1727790883658,6.23,153.23,153.11,16.328]
[1727790883659,8.1599387,153.19,153.13,6.5303]
[1727790883867,8.1599387,153.19,153.11,16.328]
[1727790883868,6.23,153.23,153.11,16.328]
[1727790884064,6.23,153.23,153.09,32.6589]
[1727790884065,6.527,153.21,153.15,6.5291]
[1727790884284,6.527,153.21,153.16,1.30561707]
[1727790884597,6.23,153.23,153.16,7.83461707]
[1727790884887,6.5268,153.22,153.16,7.83461707]
[1727790885265,6.5269,153.22,153.15,6.5293]
[1727790885461,1.63188696,153.24,153.16,17.62750957]
[1727790885676,6.5253,153.25,153.19,6.5276]
[1727790885885,6.5258,153.24,153.19,6.5276]
[1727790886183,8.15678853,153.26,153.19,6.5276]
[1727790886391,6.5254,153.25,153.18,16.3198]
[1727790886622,1.63154778,153.24,153.14,16.3238]
[1727790886911,6.5262,153.23,153.17,6.5286]
[1727790887195,6.5262,153.23,153.18,1.30538936]
[1727790887387,1.6317367,153.3,153.22,22.8426]
[1727790887594,6.5245,153.27,153.22,16.3162]
[1727790887888,6.524,153.28,153.22,16.3162]
[1727790888095,16.1406,153.34,153.24,6.5256]
[1727790888096,6.5235,153.3,153.24,6.5256]
[1727790888682,6.5235,153.3,153.22,16.3162]
[1727790888683,1.63092982,153.3,153.22,16.3162]
[1727790888903,6.5241,153.28,153.23,6.526]
[1727790889100,1.63092982,153.3,153.19,6.6323]
[1727790889286,1.63092982,153.3,153.2,17.62256525]
[1727790889485,6.5241,153.28,153.23,6.526]
[1727790890005,6.5241,153.28,153.24,1.3049561]
[1727790890507,6.5241,153.28,153.22,6.5265]
[1727790890695,1.63113191,153.29,153.22,6.5265]
[1727790891003,6.5252,153.25,153.2,22.8449]
[1727790891792,6.5249,153.26,153.2,22.8449]
[1727790892407,1.63139973,153.3,153.2,22.8449]
[1727790892408,6.5253,153.25,153.2,22.8449]
[1727790893473,1.63139963,153.28,153.2,22.8449]
[1727790893474,6.5245,153.27,153.22,6.5262]
[1727790893780,6.5235,153.29,153.24,6.5256]
[1727790893982,6.5243,153.28,153.25,1.30490536]
[1727790894285,6.5243,153.28,153.23,6.526]
[1727790894496,6.5244,153.27,153.22,22.8422]
[1727790894981,16.3085,153.3,153.19,22.9515]
[1727790895183,1.63135143,153.29,153.19,22.9515]
[1727790895390,6.5257,153.24,153.19,29.4792]
[1727790895584,16.3085,153.3,153.13,65.51312709]
[1727790895585,1.63161241,153.23,153.16,16.3223]
[1727790895782,1.63174588,153.26,153.16,16.3223]
[1727790896011,6.5266,153.22,153.17,6.5283]
[1727790896210,1.63174588,153.26,153.16,16.3223]
[1727790896388,16.5632,153.25,153.16,22.8513]
[1727790896585,8.15759922,153.24,153.18,16.3201]
[1727790896810,8.15759922,153.24,153.18,22.8482]
[1727790896811,6.5264,153.23,153.18,22.8482]
[1727790897116,1.63183613,153.22,153.15,22.9499]
[1727790897484,6.5267,153.22,153.17,6.5283]
[1727790897684,6.5262,153.23,153.18,7.83356818]
[1727790897899,1.63183634,153.22,153.18,6.5281]
[1727790898111,8.15803634,153.23,153.19,1.30546907]
[1727790898504,6.5257,153.24,153.19,7.83296907]
[1727790898884,6.5257,153.24,153.19,6.5275]
[1727790899286,6.5257,153.24,153.2,1.30526798]
[1727790899496,18.19477868,153.25,153.22,6.5263]
[1727790899700,16.5632,153.25,153.21,6.5269]
[1727790899902,16.5632,153.25,153.2,17.62306798]
[1727790899903,23.0884,153.25,153.2,24.15036798]
[1727790900296,1.63149435,153.26,153.22,16.3155]
[1727790900489,6.5248,153.26,153.21,6.5269]
[1727790900692,1.63139383,153.25,153.15,6.6263]
[1727790901016,1.63139383,153.25,153.18,6.5279]
[1727790901320,1.63139383,153.25,153.16,16.3225]
[1727790901613,6.5265,153.22,153.16,22.8515]
[1727790902005,6.5261,153.23,153.16,22.8512]
[1727790902200,8.15855303,153.22,153.16,16.3225]
[1727790902389,6.5267,153.22,153.16,16.3225]
[1727790902590,6.5271,153.21,153.16,16.3225]
[1727790902792,1.6318812,153.2,153.12,16.326]
[1727790903120,40.091084,153.25,153.1,6.5313]
[1727790903121,6.5291,153.16,153.1,6.5313]
[1727790903611,1.63243449,153.21,153.09,16.3299]
[1727790903793,6.529,153.17,153.09,16.3299]
[1727790903993,1.63243363,153.16,153.11,6.5311]
[1727790904214,1.63243589,153.2,153.12,1.30594871]
[1727790904397,1.63243589,153.2,153.14,6.5296]
[1727790904716,6.528,153.19,153.13,22.8555]
[1727790904890,6.5274,153.2,153.14,1.30579608]
[1727790905090,1.63224511,153.22,153.14,1.30579608]
[1727790905091,1.63212115,153.22,153.15,16.3228]
[1727790905345,6.5278,153.2,153.15,16.3228]
[1727790905489,8.15987069,153.19,153.15,16.3228]
[1727790905684,32.623,153.27,153.12,16.3267]
[1727790905685,17.94876666,153.22,153.12,16.3267]
[1727790905893,6.5281,153.19,153.14,6.5299]
[1727790906189,6.5281,153.19,153.13,6.5303]
[1727790906403,16.3085,153.3,153.19,6.5275]
[1727790906590,16.3085,153.3,153.18,16.3202]
[1727790906591,16.1818,153.23,153.18,16.3202]
[1727790906789,1.63168914,153.26,153.23,6.526]
[1727790906986,1.63168914,153.26,153.21,16.3172]
[1727790906987,8.15539232,153.28,153.22,7.83133386]
[1727790907214,8.15539232,153.28,153.17,6.6549]
[1727790907215,1.63129232,153.28,153.17,6.6549]
[1727790907418,6.5278,153.19,153.13,16.325]
[1727790907599,6.5288,153.17,153.12,12.8295]
[1727790907801,6.5281,153.19,153.12,6.5307]
[1727790908099,8.16061005,153.18,153.12,16.3268]
[1727790908308,8.16061005,153.18,153.12,22.8575]
[1727790908500,6.5287,153.17,153.12,6.5307]
[1727790908694,1.63239041,153.16,153.12,6.5307]
[1727790909017,1.63239041,153.16,153.11,22.8593]
[1727790909589,1.63239041,153.16,153.07,16.3315]
[1727790909796,43.776884,153.18,153.08,1.3062849]
[1727790910110,6.5295,153.15,153.09,6.5319]
[1727790910299,1.6326301,153.14,153.09,6.5319]
[1727790910901,1.6326301,153.14,153.07,16.3315]
[1727790911123,6.5313,153.11,153.04,6.1289]
[1727790911302,6.5313,153.11,153.06,6.5333]
[1727790911500,1.63302215,153.1,153.04,6.5342]
[1727790911808,1.63302215,153.1,153.03,16.3358]
[1727790911809,1.63302215,153.1,153.05,7.8403717]
[1727790912021,1.6331944,153.11,153.06,6.5332]
[1727790912210,1.6331944,153.11,153.0,38.8068]
[1727790912523,42.604,153.17,153.06,16.333]
[1727790912702,6.5304,153.13,153.08,6.5325]
[1727790913089,1.63286213,153.12,153.08,6.5325]
[1727790913516,1.63286213,153.12,153.07,6.5329]
[1727790913998,6.5304,153.13,153.07,6.5329]
[1727790914394,1.63286345,153.12,153.07,6.5329]
[1727790914832,6.5304,153.13,153.08,1.30641049]
[1727790915126,8.16381311,153.12,153.07,6.5329]
[1727790915327,6.49979,153.13,153.08,7.83867619]
[1727790915498,1.63297024,153.16,153.11,6.5311]
[1727790915815,1.63297024,153.16,153.04,32.6697]
[1727790915816,1.63297024,153.16,153.13,16.325]
[1727790916013,1.63297024,153.16,153.12,6.5307]
[1727790917008,1.63297024,153.16,153.1,16.3291]
[1727790917212,1.63297024,153.16,153.04,32.6697]
[1727790917213,6.5308,153.13,153.04,32.6697]
[1727790917414,21.63286633,153.16,153.06,16.3324]
[1727790917631,6.5304,153.13,153.07,6.5328]
[1727790917930,1.6328327,153.12,153.07,6.5328]
[1727790918236,6.5312,153.11,153.06,16.3324]
[1727790918410,6.5322,153.09,153.04,6.5339]
[1727790918609,6.5316,153.1,153.05,6.5336]
[1727790918818,23.776884,153.13,153.05,6.5336]
[1727790919129,23.776884,153.13,153.0,7.43536945]
[1727790919130,6.5321,153.09,153.04,22.8689]
[1727790919332,23.776884,153.11,153.0,38.807]
[1727790919333,1.63324836,153.11,153.0,38.807]
[1727790919509,32.6343,153.22,153.08,16.3303]
[1727790919714,6.5307,153.13,153.08,22.8627]
[1727790920024,1.63276566,153.12,153.09,6.532]
[1727790920210,6.5303,153.14,153.09,1.3062908]
[1727790920211,1.6328635,153.14,153.09,1.3062908]
[1727790920534,1.63254275,153.16,153.12,22.8567]
[1727790920709,16.5137,153.17,153.13,7.83628367]
[1727790920915,16.5137,153.17,153.15,6.5294]
[1727790921132,16.5137,153.17,153.13,6.53]
[1727790921436,1.63229834,153.16,153.12,22.8568]
[1727790921641,1.63229834,153.16,153.09,16.33]
[1727790921814,6.53,153.14,153.09,16.33]
[1727790922013,6.5309,153.12,153.06,16.3332]
[1727790922213,6.5308,153.12,153.07,6.5327]
[1727790922418,1.63295,153.11,153.06,16.3332]
[1727790922610,21.63314158,153.15,153.06,16.3332]
[1727790922840,6.5313,153.11,153.06,22.8665]
[1727790923030,1.63308087,153.14,153.09,6.5321]
[1727790923206,8.16308087,153.14,153.1,16.329]
[1727790923410,16.5137,153.17,153.1,16.329]
[1727790923411,1.63284326,153.15,153.1,16.329]
[1727790923607,16.5137,153.17,153.1,16.329]
[1727790923608,16.5137,153.17,153.12,6.5307]
[1727790923818,18.14611619,153.17,153.12,6.5307]
[1727790924013,24.67491619,153.17,153.12,6.5307]
[1727790924244,24.67491619,153.17,153.1,16.329]
[1727790924245,6.5296,153.15,153.1,16.329]
[1727790924538,1.63274468,153.14,153.07,6.5326]
[1727790925118,23.776884,153.12,153.01,6.3642]
[1727790925332,23.776884,153.13,153.01,6.3642]
[1727790925333,1.63322648,153.11,153.01,6.3642]
[1727790925515,1.63322648,153.11,153.04,16.3346]
[1727790925737,1.63322648,153.11,153.01,13.19358841]
[1727790925738,6.5329,153.08,153.01,13.36448841]
[1727790925934,8.16639005,153.07,153.01,6.5351]
[1727790926228,8.16639005,153.07,153.0,16.339]
[1727790926229,15.1222,153.09,153.06,6.5333]
[1727790926440,15.1222,153.09,153.05,6.5337]
[1727790926734,16.75534222,153.09,153.03,16.336]
[1727790926936,6.533,153.07,153.02,6.5347]
[1727790927242,6.533,153.07,153.03,1.30677911]
[1727790927729,6.533,153.07,153.02,6.5347]
[1727790927943,1.63347344,153.06,153.02,6.5347]
[1727790928247,8.16647833,153.07,153.02,6.5347]
[1727790929243,6.5325,153.08,153.03,7.84141204]
[1727790929408,15.1222,153.09,153.04,1.3067761]
[1727790929613,15.1222,153.09,152.97,6.6654]
[1727790929614,15.1222,153.09,153.05,6.5334]
[1727790929924,23.28753777,153.09,153.04,22.8688]
[1727790930232,16.75543777,153.09,153.05,6.5337]
[1727790930935,15.1222,153.09,153.07,6.5329]
[1727790931113,15.1222,153.09,153.06,16.3327]
[1727790931822,21.6543,153.09,153.03,16.3364]
[1727790932035,21.6543,153.09,153.03,22.8706]
[1727790932036,15.1222,153.09,153.03,22.8706]
[1727790932334,15.1222,153.09,153.06,6.5333]
[1727790932919,16.75525527,153.09,153.05,22.8675]
[1727790933116,23.28735527,153.09,153.05,16.3338]
[1727790933848,6.5339,153.05,153.0,6.5358]
[1727790934010,6.5339,153.05,153.0,6.5356]
[1727790934213,6.5329,153.08,153.01,16.338]
[1727790934414,15.1222,153.09,153.04,6.5339]
[1727790934715,15.1222,153.09,153.05,1.30662425]
[1727790935024,15.1222,153.09,152.98,0.2603909]
[1727790935366,6.5335,153.06,153.01,6.5355]
[1727790935654,6.5333,153.06,153.01,22.8737]
[1727790935939,6.5329,153.07,153.01,22.8737]
[1727790936144,1.63352613,153.06,153.01,22.8737]
[1727790936438,1.63352613,153.06,153.02,6.535]
[1727790937534,23.776884,153.05,152.98,16.6020909]
[1727790937748,8.16807117,153.04,153.0,6.5359]
[1727790938437,1.63387117,153.04,153.0,6.5359]
[1727790939244,1.63387117,153.04,152.98,16.6020909]
[1727790939548,6.6045,153.05,153.0,16.3391]
[1727790939746,8.23816489,153.05,153.01,6.5354]
[1727790939911,1.63366489,153.05,153.01,6.5354]
[1727790940113,1.63366481,153.08,153.02,16.3369]
[1727790940313,1.63366481,153.08,153.05,6.5337]
[1727790940541,1.63366481,153.08,153.03,1.30670003]
[1727790940542,1.63366481,153.08,153.04,6.5341]
[1727790941542,1.63339874,153.14,153.02,6.3492]
[1727790941749,1.63339874,153.14,153.04,32.6707]
[1727790941927,6.5305,153.13,153.07,16.3313]
[1727790942120,16.3205,153.19,153.04,32.6707]
[1727790942121,6.5278,153.19,153.14,6.5296]
[1727790942438,1.63248043,153.19,153.15,6.5294]
[1727790942628,1.63248043,153.19,153.14,22.8547]
[1727790942869,8.16048043,153.19,153.14,22.8547]
[1727790943229,8.16048043,153.19,153.12,6.5304]
[1727790943230,6.5287,153.17,153.12,6.5304]
[1727790943526,1.6325528,153.16,153.12,6.5304]
[1727790944926,1.6325528,153.16,153.11,16.328]
[1727790945113,6.5291,153.16,153.11,22.8591]
[1727790945313,1.6327532,153.15,153.11,16.328]
[1727790945511,21.63260716,153.19,153.08,32.6616]
[1727790945735,21.63260716,153.19,153.13,16.3252]
[1727790945736,6.5282,153.18,153.13,16.3252]
[1727790946326,15.8256,153.2,153.13,17.63124091]
[1727790946550,8.16019003,153.19,153.15,6.5294]
[1727790946722,8.16019003,153.19,153.14,6.5298]
[1727790947222,6.5294,153.16,153.1,16.3288]
[1727790947531,6.5279,153.19,153.14,6.5296]
[1727790947724,6.5283,153.18,153.14,6.5296]
[1727790948445,6.5291,153.17,153.12,16.3262]
[1727790948643,1.63260009,153.16,153.11,6.5311]
[1727790948825,1.63260009,153.16,153.09,16.3299]
[1727790949147,6.5296,153.15,153.1,6.5316]
[1727790949322,1.63273092,153.14,153.11,6.5311]
[1727790949524,6.5305,153.13,153.09,16.3299]
[1727790949855,1.63273272,153.12,153.09,16.3299]
[1727790950035,1.63273272,153.12,153.09,22.8615]
[1727790950235,1.63285004,153.13,153.09,16.3299]
[1727790951247,1.63280726,153.14,153.09,16.3299]
[1727790951431,1.63280726,153.14,153.09,22.8616]
[1727790951617,1.63280726,153.14,153.09,16.3299]
[1727790951822,1.63280726,153.14,153.1,1.30622649]
[1727790952435,1.63280726,153.14,153.11,6.5309]
[1727790952723,1.6327323,153.15,153.11,6.5309]
[1727790953026,32.2215368,153.36,153.04,32.6707]
[1727790953027,1.6327323,153.19,153.12,1.30618584]
[1727790953215,22.5597,153.24,153.08,32.6617]
[1727790953216,22.3533,153.2,153.15,6.5295]
[1727790953416,6.5279,153.19,153.15,6.5294]
[1727790953631,6.5279,153.19,153.13,16.3254]
[1727790953632,15.8256,153.2,153.14,6.5298]
[1727790953823,6.5283,153.18,153.13,16.3254]
[1727790954022,1.63243628,153.17,153.13,16.3254]
[1727790954235,6.5291,153.16,153.13,16.3254]
[1727790954560,1.63247827,153.15,153.13,16.3254]
[1727790954855,1.63247827,153.15,153.1,16.3288]
[1727790955023,15.8256,153.2,153.1,16.3288]
[1727790955024,32.1451,153.2,153.11,6.5311]
[1727790955227,6.5281,153.19,153.14,6.5299]
[1727790955434,6.5285,153.18,153.13,6.5302]
[1727790955741,8.16117463,153.17,153.13,6.5302]
[1727790955949,6.5291,153.16,153.12,22.8568]
[1727790956129,8.16161848,153.16,153.12,22.8568]
[1727790956328,6.5287,153.17,153.12,22.8568]
[1727790956546,1.63251645,153.16,153.13,6.5303]
[1727790957261,1.63247361,153.17,153.14,6.5299]
[1727790957430,15.8256,153.2,153.14,6.5299]
[1727790957756,15.8256,153.2,153.13,1.30589521]
[1727790957931,15.8256,153.2,153.16,16.3224]
[1727790958127,6.5281,153.19,153.14,6.5298]
[1727790958330,1.6322285,153.18,153.15,6.5294]
[1727790958554,1.63222716,153.18,153.15,6.5294]
[1727790959253,8.16052716,153.18,153.14,6.5298]
[1727790960151,1.63222716,153.18,153.15,22.8528]
[1727790960339,22.3531,153.2,153.15,16.3234]
[1727790960340,15.8256,153.2,153.15,16.3234]
[1727790960543,20.0,153.19,153.12,16.3265]
[1727790960761,6.5294,153.16,153.12,16.3265]
[1727790961051,6.53,153.14,153.1,6.5316]
[1727790961352,1.63272143,153.13,153.1,6.5316]
[1727790961746,1.63272143,153.13,153.1,6.5315]
[1727790962161,6.5296,153.15,153.1,6.5315]
[1727790962344,1.63272903,153.14,153.1,6.5315]
[1727790962660,1.63272903,153.14,153.09,16.3301]
[1727790962953,6.53,153.14,153.09,16.3301]
[1727790963153,1.63285622,153.13,153.03,32.6714]
[1727790963331,8.16325622,153.13,153.06,16.3328]
[1727790963535,1.63285622,153.13,153.09,6.532]
[1727790963959,1.63299242,153.14,153.11,6.531]
[1727790964129,8.16299242,153.14,153.1,22.8602]
[1727790964334,1.63299242,153.14,153.07,22.8647]
[1727790964544,6.5309,153.12,153.07,16.3322]
[1727790964767,1.6330508,153.11,153.08,6.5324]
[1727790965340,1.63305057,153.14,153.09,16.3297]
[1727790965562,1.63305057,153.14,153.12,6.5307]
[1727790965734,1.63272608,153.16,153.12,6.5307]
[1727790965936,1.63272653,153.18,153.13,17.63168122]
[1727790966235,6.0625,153.19,153.18,6.5282]
[1727790966236,1.63234723,153.19,153.18,6.5282]
[1727790966434,6.5571,153.23,153.15,32.6468]
[1727790966756,47.0250976,153.35,153.15,32.6468]
[1727790966757,15.7554,153.3,153.17,32.86292709]
[1727790966931,2.0,153.4,153.15,32.6468]
[1727790966932,1.63122995,153.29,153.25,16.3122]
[1727790967141,6.521,153.35,153.26,1.30474714]
[1727790967356,23.40722995,153.36,153.26,1.30474714]
[1727790967357,21.776,153.36,153.29,6.5235]
[1727790967540,17.8256,153.44,153.31,16.3062]
[1727790967541,1.63060736,153.39,153.31,16.3062]
[1727790967735,15.7554,153.42,153.32,1.30430947]
[1727790967736,1.63038684,153.41,153.32,1.30430947]
[1727790967962,1.63038684,153.41,153.35,6.5208]
[1727790968254,1.63038684,153.41,153.24,57.90750049]
[1727790968255,1.62996533,153.41,153.34,6.5212]
[1727790968554,1.62996533,153.41,153.31,16.3057]
[1727790968753,6.5203,153.37,153.31,16.3057]
[1727790968971,1.63049153,153.36,153.23,32.6286]
[1727790969166,6.5212,153.35,153.26,22.8357]
[1727790969336,6.522,153.33,153.26,16.3112]
[1727790969537,39.6,153.4,153.2,39.01022709]
[1727790969538,6.5228,153.31,153.22,22.8425]
[1727790969745,1.63102296,153.3,153.22,16.3163]
[1727790970045,20.0,153.33,153.23,6.5258]
[1727790970346,6.5232,153.3,153.22,22.8427]
[1727790970550,1.63112845,153.29,153.22,22.8427]
[1727790971250,1.63112845,153.29,153.23,7.83093678]
[1727790971562,1.63112852,153.31,153.23,6.526]
[1727790971743,6.5232,153.3,153.23,6.526]
[1727790972060,23.776884,153.32,153.22,16.3163]
[1727790972061,8.15475526,153.29,153.22,22.8427]
[1727790972250,8.15475526,153.29,153.22,16.3163]
[1727790972251,6.5242,153.28,153.22,16.3163]
[1727790972450,8.15592768,153.27,153.2,6.5273]
[1727790972764,8.15592768,153.27,153.18,16.3204]
[1727790972765,6.5251,153.26,153.18,22.8483]
[1727790972932,16.3505,153.29,153.18,22.8483]
[1727790972933,1.63153422,153.25,153.18,22.8483]
[1727790973137,1.63160552,153.28,153.18,16.3204]
[1727790973336,23.776884,153.27,153.19,6.5277]
[1727790973540,23.776884,153.25,153.09,52.0]
[1727790973745,6.5275,153.2,153.14,16.3248]
[1727790973955,1.63213802,153.19,153.14,16.3248]
[1727790974349,23.776884,153.23,153.15,1.30577236]
[1727790974554,23.776884,153.23,153.14,16.3248]
[1727790974555,1.63201419,153.22,153.14,22.8544]
[1727790974743,6.5275,153.2,153.14,16.3248]
[1727790975064,23.776884,153.23,153.14,16.3248]
[1727790975065,8.16001649,153.19,153.14,16.3248]
[1727790975367,6.5283,153.18,153.11,6.5309]
[1727790975543,1.63233728,153.17,153.11,6.5309]
[1727790975743,1.63233728,153.17,153.12,6.5308]
[1727790976536,21.63235446,153.22,153.13,1.30588357]
[1727790976838,23.776884,153.21,153.1,16.3286]
[1727790977054,21.63235446,153.22,153.06,16.3332]
[1727790977055,6.5301,153.14,153.06,16.3332]
[1727790977253,1.63284753,153.13,153.06,16.3332]
[1727790977462,1.63284753,153.13,153.08,6.5325]
[1727790977762,1.63290004,153.14,153.09,7.83832003]
[1727790977965,1.63290004,153.14,153.06,16.3332]
[1727790978266,8.16280004,153.14,153.08,6.5325]
[1727790978846,6.5295,153.15,153.09,6.5321]
[1727790979141,1.63277223,153.14,153.07,6.5326]
[1727790979342,6.5304,153.13,153.07,6.5326]
[1727790979664,15.5929,153.16,153.06,16.3332]
[1727790979665,8.1637003,153.12,153.06,16.3332]
[1727790979842,6.5308,153.12,153.06,16.3332]
[1727790980036,6.5308,153.12,153.06,22.8665]
[1727790980390,6.5305,153.13,153.07,6.5329]
[1727790980552,1.63303556,153.12,153.07,6.5329]
[1727790980748,1.63303556,153.12,153.07,7.83932845]
[1727790980948,8.16332625,153.14,153.08,6.5325]
[1727790981150,1.63302625,153.14,153.06,16.3332]
[1727790981358,1.63302625,153.14,153.03,16.3366]
[1727790981359,6.5324,153.09,153.03,16.3366]
[1727790981743,1.63326457,153.12,152.98,0.2603909]
[1727790981744,1.63326457,153.12,153.06,16.3324]
[1727790981948,21.63296691,153.15,153.06,16.3324]
[1727790982169,1.63296691,153.15,153.08,16.3303]
[1727790982347,1.63296691,153.15,153.1,6.5316]
[1727790982746,1.63296691,153.15,153.1,1.30619187]
[1727790983070,1.63296691,153.15,153.11,6.5312]
[1727790983246,1.63270587,153.2,153.16,6.5289]
[1727790983446,16.2897,153.23,153.15,16.3229]
[1727790983447,1.63219125,153.22,153.15,16.3229]
[1727790983647,6.527,153.21,153.15,22.852]
[1727790983948,1.63208818,153.2,153.15,22.852]
[1727790984178,1.63208747,153.22,153.18,6.5281]
[1727790984487,8.15858747,153.22,153.17,6.5286]
[1727790984663,6.527,153.21,153.16,6.529]
[1727790984858,1.63208747,153.22,153.17,6.5285]
[1727790985058,1.63208747,153.22,153.18,7.8336425]
[1727790985369,1.63208747,153.22,153.15,16.3229]
[1727790985576,8.15868747,153.22,153.17,6.5286]
[1727790985768,8.15868747,153.22,153.09,6.4709]
[1727790985769,1.63208747,153.22,153.06,32.6653]
[1727790985965,6.5283,153.18,153.13,6.5303]
[1727790986279,1.63228992,153.17,153.12,16.3269]
[1727790986581,1.63232877,153.21,153.12,16.3269]
[1727790986762,23.776884,153.2,153.12,16.3269]
[1727790986960,1.63231563,153.19,153.12,16.3269]
[1727790987162,6.5286,153.17,153.12,22.8576]
[1727790987376,6.5287,153.17,153.12,22.8576]
[1727790987568,1.63240234,153.16,153.12,22.8576]
[1727790987905,6.5287,153.17,153.13,6.5303]
[1727790988176,23.776884,153.2,153.07,1.30590398]
[1727790988177,1.63242518,153.16,153.07,1.30590398]
[1727790988376,23.776884,153.2,153.07,1.30590398]
[1727790988377,1.63242518,153.18,153.07,1.30590398]
[1727790989079,1.63242288,153.19,153.1,32.6576]
[1727790989259,1.63242288,153.19,153.14,22.8538]
[1727790989260,6.5278,153.19,153.14,22.8538]
[1727790989464,6.5274,153.2,153.15,6.5293]
[1727790989783,1.63217796,153.19,153.15,6.5293]
[1727790989983,8.15997796,153.19,153.14,22.854]
[1727790990160,1.63217779,153.18,153.14,22.854]
[1727790990361,6.5282,153.18,153.14,16.3242]
[1727790990559,1.63230881,153.17,153.1,32.6576]
[1727790990763,20.0,153.22,153.1,32.6576]
[1727790990764,6.5296,153.15,153.11,16.3278]
[1727790990974,6.5305,153.13,153.08,22.8636]
[1727790991285,40.096084,153.2,153.08,16.3312]
[1727790991286,8.16364681,153.12,153.08,16.3312]
[1727790991485,6.5308,153.12,153.08,16.3312]
[1727790992289,1.63295692,153.17,153.08,16.3312]
[1727790992472,6.53,153.14,153.09,6.532]
[1727790992669,8.16317688,153.13,153.09,6.532]
[1727790992868,6.53,153.14,153.09,6.532]
[1727790993179,1.63277299,153.15,153.11,6.5311]
[1727790993484,1.63257637,153.17,153.12,16.3264]
[1727790993667,6.5283,153.18,153.13,6.5301]
[1727790993868,6.5283,153.18,153.12,16.3264]
[1727790993869,8.16142735,153.17,153.12,22.8571]
[1727790994073,16.3179,153.21,153.13,6.5301]
[1727790994074,6.5285,153.18,153.13,6.5301]
[1727790994270,6.5285,153.18,153.14,1.30515207]
[1727790994271,1.63239945,153.18,153.14,1.30515207]
[1727790994468,22.5265,153.24,153.14,1.30515207]
[1727790994469,6.5269,153.22,153.17,6.5286]
[1727790994678,1.63202499,153.21,153.17,6.5286]
[1727790994885,6.5269,153.22,153.17,7.83414427]
[1727790995204,6.212,153.24,153.18,16.3201]
[1727790995369,17.57636961,153.29,153.19,1.30533569]